bitfinex-derivatives/quotes_BTCF0:USTF0_20250129
["timestamp","ask_amount","ask_price","bid_price","bid_amount"]
[1738114345731,0.80712708,101720.0,101710.0,0.01081768]
[1738114346323,0.80712708,101720.0,101710.0,0.07176291]
[1738114347027,0.74618185,101720.0,101710.0,0.07176291]
[1738114347329,0.80712708,101720.0,101710.0,0.07176291]
[1738114348735,0.74618185,101720.0,101710.0,0.07176291]
[1738114351831,0.80712708,101720.0,101710.0,0.07176291]
[1738114354041,0.74618185,101720.0,101710.0,0.07176291]
[1738114354835,0.80712708,101720.0,101710.0,0.07176291]
[1738114355528,0.80712708,101720.0,101710.0,0.01081768]
[1738114356424,0.83640185,101720.0,101710.0,0.01081768]
[1738114360135,0.95143177,101720.0,101710.0,0.01081768]
[1738114361636,0.96145366,101720.0,101710.0,0.01081768]
[1738114363735,0.83640185,101720.0,101710.0,0.01081768]
[1738114363935,0.77545662,101720.0,101710.0,0.01081768]
[1738114364236,0.83640185,101720.0,101710.0,0.01081768]
[1738114369139,0.77545662,101720.0,101710.0,0.01081768]
[1738114373144,0.83640185,101720.0,101710.0,0.01081768]
[1738114374134,0.77545662,101720.0,101710.0,0.01081768]
[1738114375235,0.83640185,101720.0,101710.0,0.01081768]
[1738114376836,0.77545662,101720.0,101710.0,0.01081768]
[1738114378738,0.89734708,101720.0,101710.0,0.001]
[1738114378943,0.89734708,101720.0,101690.0,0.41260273]
[1738114378944,0.137735,101700.0,101690.0,0.41260273]
[1738114379143,0.498535,101700.0,101690.0,0.29672503]
[1738114379638,0.498535,101700.0,101690.0,0.32692503]
[1738114380033,0.98122546,101700.0,101690.0,0.2357798]
[1738114380235,1.04382546,101700.0,101690.0,0.2357798]
[1738114381533,1.04482546,101700.0,101690.0,0.2357798]
[1738114382643,0.137775,101670.0,101660.0,0.24285502]
[1738114382846,0.55952023,101670.0,101660.0,0.17708013]
[1738114383239,0.59022023,101670.0,101660.0,0.17708013]
[1738114384241,0.59122023,101670.0,101660.0,0.18608013]
[1738114385339,0.59022023,101670.0,101660.0,0.17708013]
[1738114385540,0.59022023,101670.0,101660.0,0.17908013]
[1738114386745,0.73683831,101670.0,101660.0,0.002]
[1738114387248,0.79778354,101670.0,101660.0,0.002]
[1738114387748,0.73683831,101670.0,101660.0,0.002]
[1738114388835,0.7466895,101670.0,101660.0,0.002]
[1738114391444,0.80763473,101670.0,101660.0,0.002]
[1738114391647,0.80763473,101670.0,101660.0,1e-06]
[1738114395851,0.137789,101660.0,101650.0,0.00014758]
[1738114396157,0.13783,101630.0,101620.0,0.033]
[1738114396354,0.98132046,101630.0,101620.0,0.033]
[1738114396556,0.137843,101620.0,101610.0,0.033]
[1738114396747,0.62053346,101620.0,101610.0,0.033]
[1738114397053,0.62053346,101620.0,101600.0,0.1624]
[1738114397251,0.55960223,101610.0,101600.0,0.1316]
[1738114397459,0.62054746,101610.0,101600.0,0.1]
[1738114397749,0.498657,101610.0,101600.0,0.16094523]
[1738114398156,0.55960223,101610.0,101600.0,0.16094523]
[1738114398652,0.56060223,101610.0,101600.0,0.105]
[1738114398848,0.499657,101610.0,101600.0,0.105]
[1738114400755,0.499657,101610.0,101600.0,0.1359]
[1738114402750,0.499657,101610.0,101600.0,0.15128556]
[1738114403352,0.499657,101610.0,101600.0,0.15128836]
[1738114404056,0.499657,101610.0,101600.0,0.15129337]
[1738114404257,0.499657,101610.0,101600.0,0.15129338]
[1738114404451,0.499657,101610.0,101600.0,0.15129326]
[1738114405656,0.001,101610.0,101600.0,0.74305013]
[1738114408261,0.001,101610.0,101600.0,0.74301944]
[1738114410661,0.001,101610.0,101600.0,0.75296139]
[1738114411358,0.59274387,101610.0,101600.0,0.16120452]
[1738114411858,0.499657,101610.0,101600.0,0.16120452]
[1738114412657,0.499657,101610.0,101600.0,0.15126257]
[1738114412963,0.499657,101610.0,101600.0,0.1359]
[1738114415158,0.70364608,101610.0,101600.0,0.1359]
[1738114415361,0.20498908,101610.0,101600.0,0.72765687]
[1738114415663,0.20498908,101610.0,101600.0,0.77096179]
[1738114416359,0.14676566,101620.0,101600.0,0.72617866]
[1738114416565,0.14676566,101620.0,101610.0,0.68483074]
[1738114416763,0.1759417,101630.0,101620.0,0.137843]
[1738114416965,0.1759417,101630.0,101620.0,0.23092987]
[1738114418052,0.26902857,101630.0,101610.0,0.13800058]
[1738114418268,0.62982857,101630.0,101610.0,0.13800058]
[1738114418564,0.65992857,101630.0,101610.0,0.13800058]
[1738114418754,0.65992857,101630.0,101610.0,0.14000058]
[1738114418755,0.0319,101620.0,101610.0,0.14000058]
[1738114419165,0.0319,101620.0,101610.0,0.13800058]
[1738114419365,0.0319,101620.0,101610.0,0.14000058]
[1738114419565,0.169743,101620.0,101610.0,0.14000058]
[1738114419958,0.169743,101620.0,101610.0,0.23308745]
[1738114420366,0.169743,101620.0,101610.0,0.14000058]
[1738114420772,0.169743,101620.0,101610.0,0.13800058]
[1738114421062,0.169743,101620.0,101610.0,0.14000058]
[1738114425263,0.169743,101620.0,101610.0,0.23308745]
[1738114425855,0.169743,101620.0,101610.0,0.59388745]
[1738114426264,0.169743,101620.0,101610.0,0.23308745]
[1738114427470,0.169743,101620.0,101610.0,0.14000058]
[1738114427669,0.201043,101620.0,101610.0,0.14000058]
[1738114428672,0.561843,101620.0,101610.0,0.14000058]
[1738114435978,0.7377847,101620.0,101610.0,0.14000058]
[1738114437075,0.83087157,101620.0,101610.0,0.00214758]
[1738114437275,0.69302857,101620.0,101600.0,0.1]
[1738114437472,0.59174387,101610.0,101600.0,0.1]
[1738114438376,0.498657,101610.0,101600.0,0.1]
[1738114438985,0.498657,101610.0,101600.0,0.19308687]
[1738114439280,0.498657,101610.0,101600.0,0.19908687]
[1738114439483,0.72248231,101610.0,101600.0,0.19908687]
[1738114439684,0.58462531,101610.0,101600.0,0.33695687]
[1738114439982,0.36168231,101610.0,101600.0,0.33695687]
[1738114441484,0.36168231,101610.0,101600.0,0.33095687]
[1738114441674,0.36268231,101610.0,101600.0,0.69575687]
[1738114442881,0.36268231,101610.0,101600.0,0.33495687]
[1738114443085,0.138857,101610.0,101600.0,0.69575687]
[1738114444479,0.138857,101610.0,101600.0,0.60267]
[1738114444677,0.138857,101610.0,101600.0,0.24187]
[1738114450195,0.171357,101610.0,101600.0,0.24187]
[1738114450385,0.49442495,101610.0,101600.0,0.24187]
[1738114450984,0.94831182,101610.0,101600.0,0.104]
[1738114451585,1.48831182,101610.0,101600.0,0.104]
[1738114451780,0.94831182,101610.0,101600.0,0.104]
[1738114454100,0.62524387,101610.0,101600.0,0.104]
[1738114455594,0.80141074,101610.0,101600.0,0.104]
[1738114455793,0.137884,101590.0,101580.0,0.00147648]
[1738114455987,0.498684,101590.0,101580.0,0.0113801]
[1738114456189,0.498684,101590.0,101580.0,0.00147648]
[1738114456385,0.529384,101590.0,101580.0,0.00147648]
[1738114457200,0.62247087,101590.0,101580.0,0.00147648]
[1738114457902,0.76946581,101590.0,101580.0,0.00147648]
[1738114458092,0.79956581,101590.0,101580.0,0.00147648]
[1738114458292,0.80056581,101590.0,101580.0,0.00347648]
[1738114458497,0.80056581,101590.0,101580.0,0.002]
[1738114459401,0.137897,101580.0,101570.0,7.266e-05]
[1738114459590,0.137897,101580.0,101570.0,0.01010066]
[1738114459794,0.137897,101580.0,101570.0,7.266e-05]
[1738114461405,0.137897,101580.0,101570.0,0.00207266]
[1738114462002,0.170897,101580.0,101570.0,0.00207266]
[1738114462394,0.170897,101580.0,101570.0,0.01212513]
[1738114462603,0.170897,101580.0,101570.0,0.105212]
[1738114463202,0.137897,101580.0,101570.0,0.105212]
[1738114463394,0.137897,101580.0,101570.0,0.603923]
[1738114463595,0.137897,101580.0,101570.0,0.636523]
[1738114464498,0.28488094,101590.0,101580.0,0.137897]
[1738114464696,0.28488094,101590.0,101580.0,0.62218387]
[1738114464899,0.28488094,101590.0,101580.0,0.65338387]
[1738114465096,0.14699494,101590.0,101580.0,0.65338387]
[1738114465701,0.14714252,101600.0,101580.0,0.65338387]
[1738114466097,0.14714252,101600.0,101590.0,0.3608]
[1738114466301,0.14714252,101600.0,101580.0,0.65338387]
[1738114466495,0.14714252,101600.0,101590.0,0.23097087]
[1738114468098,0.14814252,101600.0,101590.0,0.59177087]
[1738114468303,0.14814252,101600.0,101590.0,0.23097087]
[1738114468693,0.28501252,101600.0,101590.0,0.23297087]
[1738114468897,0.28501252,101600.0,101590.0,0.139884]
[1738114469899,0.13801758,101600.0,101590.0,0.139884]
[1738114470502,0.13801758,101600.0,101590.0,0.23297087]
[1738114471011,0.13801758,101600.0,101590.0,0.26447087]
[1738114472408,0.00014758,101600.0,101590.0,0.62527087]
[1738114474309,0.00014758,101600.0,101590.0,0.62544991]
[1738114474816,0.00014758,101600.0,101590.0,0.63547375]
[1738114478003,0.00014758,101600.0,101590.0,0.27467375]
[1738114478714,0.13801758,101600.0,101590.0,0.27467375]
[1738114481318,0.25553435,101600.0,101590.0,0.27467375]
[1738114483108,0.25553435,101600.0,101590.0,0.63547375]
[1738114483819,0.25553435,101600.0,101590.0,0.27467375]
[1738114484029,0.25553435,101600.0,101590.0,0.63547375]
[1738114487017,0.25553435,101600.0,101590.0,0.60397375]
[1738114491618,0.25553435,101600.0,101590.0,0.46608975]
[1738114491823,0.61633435,101600.0,101590.0,0.01220288]
[1738114492624,0.25553435,101600.0,101590.0,0.01220288]
[1738114493412,0.61633435,101600.0,101590.0,0.01220288]
[1738114493820,0.25553435,101600.0,101590.0,0.01220288]
[1738114494016,0.61633435,101600.0,101590.0,0.01220288]
[1738114494731,0.25553435,101600.0,101590.0,0.01220288]
[1738114495027,0.61633435,101600.0,101590.0,0.01220288]
[1738114497128,0.82220645,101600.0,101590.0,0.01220288]
[1738114499528,0.46140645,101600.0,101590.0,0.01220288]
[1738114500121,0.47120902,101600.0,101590.0,0.01220288]
[1738114500529,0.83200902,101600.0,101590.0,0.01220288]
[1738114500829,0.47120902,101600.0,101590.0,0.01220288]
[1738114501027,0.83200902,101600.0,101590.0,0.01220288]
[1738114502527,0.92509589,101600.0,101590.0,0.01220288]
[1738114504134,0.92509589,101600.0,101590.0,0.01020288]
[1738114504335,0.92609589,101600.0,101590.0,0.01020288]
[1738114504531,0.92609589,101600.0,101590.0,0.00017904]
[1738114506544,0.95523184,101600.0,101590.0,0.00017904]
[1738114509225,0.63184297,101600.0,101590.0,0.00017904]
[1738114509732,0.49397297,101600.0,101570.0,0.06118407]
[1738114509935,0.498697,101580.0,101570.0,0.07081965]
[1738114511334,0.498697,101580.0,101570.0,0.07281965]
[1738114511535,0.55980841,101580.0,101570.0,0.01170824]
[1738114511736,0.498697,101580.0,101570.0,0.07281965]
[1738114511935,0.138897,101580.0,101570.0,0.07281965]
[1738114512633,0.137897,101580.0,101570.0,0.07281965]
[1738114513631,0.28489376,101580.0,101570.0,0.07281965]
[1738114516337,0.28489376,101580.0,101570.0,0.13471965]
[1738114517242,0.40247137,101580.0,101570.0,0.13471965]
[1738114521635,0.40247137,101580.0,101570.0,0.27263065]
[1738114524444,0.25547461,101580.0,101570.0,0.27263065]
[1738114527850,0.137897,101580.0,101570.0,0.27263065]
[1738114528240,0.60459676,101590.0,101570.0,0.27263065]
[1738114528549,0.38168276,101590.0,101580.0,0.06111141]
[1738114530852,0.38268276,101590.0,101580.0,0.06111141]
[1738114531960,0.41208211,101590.0,101580.0,0.06111141]
[1738114532661,0.47319352,101590.0,101570.0,0.56953065]
[1738114533161,0.47319352,101590.0,101580.0,0.06111141]
[1738114533162,0.41208211,101590.0,101580.0,0.06111141]
[1738114533362,0.83399352,101590.0,101580.0,0.06111141]
[1738114533863,0.83299352,101590.0,101570.0,0.21073065]
[1738114534361,0.77188211,101590.0,101570.0,0.56953065]
[1738114534559,0.77288211,101590.0,101570.0,0.56953065]
[1738114535262,0.77188211,101590.0,101570.0,0.56953065]
[1738114535464,0.77188211,101590.0,101570.0,0.57153065]
[1738114535764,0.65659741,101590.0,101570.0,0.57153065]
[1738114536165,0.137897,101580.0,101570.0,0.57153065]
[1738114539265,0.46189452,101580.0,101570.0,0.57153065]
[1738114545078,0.94491734,101580.0,101570.0,5.8e-07]
[1738114545267,0.86813175,101580.0,101560.0,0.32975965]
[1738114545462,0.86813175,101580.0,101560.0,0.18005965]
[1738114545463,1.25833382,101570.0,101560.0,0.18005965]
[1738114545667,1.12042282,101570.0,101550.0,0.64534423]
[1738114545876,0.62094782,101560.0,101550.0,0.64534423]
[1738114546578,0.59193936,101560.0,101550.0,0.64534423]
[1738114546776,1.13193936,101560.0,101550.0,0.64534423]
[1738114547178,1.22515372,101560.0,101550.0,0.64534423]
[1738114549775,0.59193936,101560.0,101550.0,0.64534423]
[1738114550174,0.59193936,101560.0,101530.0,0.00974676]
[1738114550175,0.137952,101540.0,101530.0,0.00974676]
[1738114550377,0.59196636,101540.0,101520.0,0.56285547]
[1738114551076,0.498752,101540.0,101520.0,0.65606983]
[1738114551784,0.499752,101540.0,101520.0,0.66717142]
[1738114551978,0.138952,101540.0,101530.0,0.3608]
[1738114552373,0.138952,101540.0,101530.0,0.498765]
[1738114553672,0.001,101540.0,101530.0,0.59197936]
[1738114554281,0.20608913,101540.0,101530.0,0.59197936]
[1738114554783,0.20508913,101540.0,101530.0,0.59197936]
[1738114554984,0.20608913,101540.0,101530.0,0.59297936]
[1738114557582,0.66010349,101540.0,101500.0,0.46091803]
[1738114557785,0.137982,101520.0,101510.0,0.3608]
[1738114558087,0.137993,101510.0,101500.0,0.17502541]
[1738114558675,0.137993,101510.0,101500.0,0.53582541]
[1738114559686,0.137993,101510.0,101500.0,0.17502541]
[1738114559887,0.59200736,101510.0,101500.0,0.17490738]
[1738114560075,0.59200736,101510.0,101500.0,0.1651]
[1738114560279,0.59200736,101510.0,101500.0,0.1]
[1738114561189,0.498793,101510.0,101500.0,0.1]
[1738114561688,0.137993,101510.0,101500.0,0.4608]
[1738114561891,0.137993,101510.0,101500.0,0.55401436]
[1738114562087,0.137993,101510.0,101500.0,0.69202036]
[1738114562985,0.22588834,101510.0,101500.0,0.69202036]
[1738114563392,0.08789534,101510.0,101500.0,0.69202036]
[1738114567485,0.58681192,101530.0,101510.0,0.137992]
[1738114567686,0.58681192,101530.0,101520.0,0.0309]
[1738114568887,0.22601192,101530.0,101520.0,0.529679]
[1738114569191,0.23101192,101530.0,101520.0,0.561979]
[1738114569583,0.23101192,101530.0,101520.0,0.201179]
[1738114570097,0.59181192,101530.0,101520.0,0.201179]
[1738114570588,0.58681192,101530.0,101520.0,0.201179]
[1738114570776,0.22601192,101530.0,101520.0,0.561979]
[1738114570979,0.08804292,101530.0,101520.0,0.74840772]
[1738114571190,0.00014758,101530.0,101520.0,0.65519336]
[1738114571494,0.20508913,101540.0,101530.0,0.137965]
[1738114571692,0.20508913,101540.0,101530.0,0.59197936]
[1738114572780,0.46037149,101550.0,101530.0,0.45401436]
[1738114572781,0.32243049,101550.0,101530.0,0.45401436]
[1738114572987,0.31549142,101550.0,101540.0,0.62246636]
[1738114574893,0.31649142,101550.0,101540.0,0.62246636]
[1738114575394,0.00114758,101550.0,101540.0,0.62246636]
[1738114577290,0.00114758,101550.0,101540.0,0.63250033]
[1738114583098,0.00114758,101550.0,101540.0,0.66540033]
[1738114594609,0.00114758,101550.0,101540.0,0.30460033]
[1738114594796,0.00114758,101550.0,101540.0,1.02620033]
[1738114595199,0.00114758,101550.0,101540.0,0.99330033]
[1738114595899,0.00114758,101550.0,101540.0,1.02410033]
[1738114603615,0.00114758,101550.0,101540.0,0.86958597]
[1738114603919,0.03364758,101550.0,101540.0,0.86958597]
[1738114604121,0.65749994,101550.0,101540.0,0.01003397]
[1738114604312,0.137952,101540.0,101530.0,0.43227129]
[1738114604516,0.137952,101540.0,101530.0,0.79307129]
[1738114605725,0.137952,101540.0,101530.0,0.79407129]
[1738114605917,0.169952,101540.0,101530.0,0.79407129]
[1738114606327,0.169952,101540.0,101530.0,0.80196545]
[1738114606526,0.169952,101540.0,101530.0,0.44116545]
[1738114606725,0.530752,101540.0,101530.0,0.44116545]
[1738114606921,0.70654268,101540.0,101530.0,0.14700474]
[1738114607221,0.34574268,101540.0,101530.0,0.14700474]
[1738114607424,0.70654268,101540.0,101530.0,0.14700474]
[1738114607625,0.70654268,101540.0,101530.0,0.00904174]
[1738114608021,0.34574268,101540.0,101530.0,0.00904174]
[1738114609017,0.70654268,101540.0,101530.0,0.00904174]
[1738114609519,0.34574268,101540.0,101530.0,0.00904174]
[1738114610329,0.49269917,101540.0,101530.0,0.00904174]
[1738114610521,0.85349917,101540.0,101530.0,0.00904174]
[1738114611027,0.85349917,101540.0,101530.0,0.14700674]
[1738114612216,0.32274717,101540.0,101530.0,0.2402211]
[1738114612417,0.32274717,101540.0,101530.0,0.6340211]
[1738114613823,0.32274717,101540.0,101530.0,0.18000674]
[1738114614028,0.32274717,101540.0,101530.0,0.14700674]
[1738114614624,0.14695649,101540.0,101530.0,0.14700674]
[1738114615523,0.28490849,101540.0,101530.0,0.14700674]
[1738114616131,0.41012285,101540.0,101530.0,0.14700674]
[1738114616428,0.31690849,101540.0,101530.0,0.14700674]
[1738114617322,0.67770849,101540.0,101530.0,0.14700674]
[1738114617826,0.31690849,101540.0,101530.0,0.14700674]
[1738114618325,0.14695649,101540.0,101530.0,0.2402211]
[1738114618532,0.14695649,101540.0,101530.0,0.6010211]
[1738114621827,0.67864407,101550.0,101530.0,0.6010211]
[1738114622128,0.67864407,101550.0,101540.0,0.169452]
[1738114622426,0.67864407,101550.0,101540.0,0.202452]
[1738114623023,0.31784407,101550.0,101540.0,0.202452]
[1738114624323,0.28504407,101550.0,101540.0,0.29566636]
[1738114624535,0.28504407,101550.0,101540.0,0.32776636]
[1738114625826,0.28704407,101550.0,101540.0,0.32776636]
[1738114626229,0.28704407,101550.0,101540.0,0.234552]
[1738114626823,0.64784407,101550.0,101540.0,0.202452]
[1738114627127,0.64784407,101550.0,101530.0,0.50680474]
[1738114627128,0.137952,101540.0,101530.0,0.50680474]
[1738114627329,0.59196636,101540.0,101530.0,0.00804174]
[1738114628032,0.59196636,101540.0,101530.0,0.00014758]
[1738114628342,0.59196636,101540.0,101530.0,0.00114758]
[1738114631835,0.76775704,101540.0,101530.0,0.00114758]
[1738114633830,0.40695704,101540.0,101530.0,0.00114758]
[1738114634035,0.76775704,101540.0,101530.0,0.00114758]
[1738114639339,0.59196636,101540.0,101530.0,0.00114758]
[1738114640334,0.498752,101540.0,101530.0,0.00114758]
[1738114640536,0.498752,101540.0,101530.0,0.13911258]
[1738114640729,0.137952,101540.0,101530.0,0.49991258]
[1738114640935,0.137952,101540.0,101530.0,0.59312694]
[1738114642632,0.137952,101540.0,101530.0,0.60147876]
[1738114644543,0.137952,101540.0,101530.0,0.1474644]
[1738114644744,0.498752,101540.0,101530.0,0.1474644]
[1738114645244,0.137952,101540.0,101530.0,0.1474644]
[1738114646144,0.498752,101540.0,101530.0,0.1474644]
[1738114646838,0.137952,101540.0,101530.0,0.60147876]
[1738114647034,0.3142845,101540.0,101530.0,0.60147876]
[1738114647842,0.1763325,101540.0,101530.0,0.60147876]
[1738114651147,0.11756103,101540.0,101530.0,0.60147876]
[1738114658348,0.00014758,101550.0,101530.0,0.46351376]
[1738114658552,0.00014758,101550.0,101540.0,0.68616636]
[1738114661451,0.00214758,101550.0,101540.0,0.68616636]
[1738114673863,0.00214758,101550.0,101540.0,0.77938072]
[1738114674254,0.00214758,101550.0,101540.0,0.68616636]
[1738114675165,0.00214758,101550.0,101540.0,0.77938072]
[1738114676173,0.00214758,101550.0,101540.0,0.862933]
[1738114678268,0.00214758,101550.0,101540.0,0.502133]
[1738114678473,0.00214758,101550.0,101540.0,1.223733]
[1738114679256,0.00214758,101550.0,101540.0,1.45975407]
[1738114680572,0.00214758,101550.0,101540.0,1.48879841]
[1738114683273,0.00214758,101550.0,101540.0,1.31203177]
[1738114683771,0.00214758,101550.0,101540.0,1.37316112]
[1738114685266,0.00214758,101550.0,101540.0,1.41609133]
[1738114687274,0.11756103,101560.0,101550.0,0.137938]
[1738114687478,0.11756103,101560.0,101550.0,0.6209967]
[1738114689974,0.12256103,101560.0,101550.0,0.6209967]
[1738114690965,0.12256103,101560.0,101550.0,0.79814623]
[1738114691380,0.12256103,101560.0,101550.0,0.84108639]
[1738114691674,0.12256103,101560.0,101550.0,0.79814623]
[1738114691870,0.09486103,101560.0,101550.0,0.79814623]
[1738114692078,0.31784163,101570.0,101560.0,0.137925]
[1738114692265,0.44137776,101590.0,101580.0,0.137897]
[1738114692573,0.44137776,101590.0,101580.0,0.2601557]
[1738114692969,0.44137776,101590.0,101580.0,0.6209557]
[1738114693575,0.44937776,101590.0,101580.0,0.6209557]
[1738114695565,0.008,101590.0,101580.0,0.6209557]
[1738114696676,0.008,101590.0,101580.0,0.55982635]
[1738114697277,0.008,101590.0,101580.0,0.6209557]
[1738114698470,0.008,101590.0,101580.0,0.55982635]
[1738114698678,0.008,101590.0,101580.0,0.6209557]
[1738114701277,0.008,101590.0,101580.0,0.2601557]
[1738114701780,0.008,101590.0,101580.0,0.26895084]
[1738114703179,0.008,101590.0,101580.0,0.62975084]
[1738114704679,0.008,101590.0,101580.0,0.69385084]
[1738114705377,0.008,101590.0,101580.0,0.72455084]
[1738114706573,0.008,101590.0,101580.0,0.78568019]
[1738114706778,0.008,101590.0,101580.0,0.72455084]
[1738114707674,0.09599468,101590.0,101580.0,0.72455084]
[1738114711683,0.09199468,101590.0,101580.0,0.72455084]
[1738114712980,0.004,101590.0,101580.0,0.72455084]
[1738114714285,0.004,101590.0,101580.0,0.66342149]
[1738114714492,0.004,101590.0,101580.0,0.63272149]
[1738114714787,0.004,101590.0,101580.0,0.69385084]
[1738114716981,0.09199468,101590.0,101580.0,0.69385084]
[1738114720290,0.004,101590.0,101580.0,0.69385084]
[1738114723590,0.004,101590.0,101580.0,0.87100037]
[1738114726503,0.004,101590.0,101580.0,0.80987102]
[1738114726895,0.09210258,101590.0,101580.0,0.80987102]
[1738114729102,0.09210258,101590.0,101580.0,0.87100037]
[1738114729694,0.09210258,101590.0,101580.0,0.80987102]
[1738114730302,0.15082489,101590.0,101580.0,0.63272149]
[1738114732297,0.15082489,101590.0,101580.0,0.69385084]
[1738114733295,0.15082489,101590.0,101580.0,0.87100037]
[1738114736812,0.15082489,101590.0,101580.0,0.69385084]
[1738114740996,0.3267925,101590.0,101580.0,0.69385084]
[1738114742693,0.3267925,101590.0,101580.0,0.75498019]
[1738114743108,0.3267925,101590.0,101580.0,0.83806019]
[1738114743407,0.3267925,101590.0,101580.0,0.88099465]
[1738114744202,0.15082489,101590.0,101580.0,1.29416525]
[1738114744808,0.14782489,101590.0,101580.0,1.29416525]
[1738114746008,0.0962939,101590.0,101580.0,1.29416525]
[1738114746318,0.31980293,101620.0,101580.0,1.19073925]
[1738114746621,0.11956073,101630.0,101620.0,0.137843]
[1738114746819,0.02917624,101630.0,101620.0,0.68203105]
[1738114747007,0.02917624,101630.0,101620.0,0.71513105]
[1738114747406,0.0032357,101630.0,101620.0,0.71513105]
[1738114747911,0.26542726,101630.0,101620.0,0.71513105]
[1738114748111,0.26642726,101630.0,101620.0,0.71513105]
[1738114748615,0.26642726,101630.0,101620.0,0.62472007]
[1738114749808,0.26642726,101630.0,101620.0,0.68602007]
[1738114752710,0.26642726,101630.0,101620.0,0.69537769]
[1738114752905,0.001,101630.0,101620.0,0.96472156]
[1738114753216,0.08784878,101650.0,101640.0,0.137816]
[1738114753417,0.08784878,101650.0,101640.0,0.68457014]
[1738114754609,0.09484878,101650.0,101640.0,0.74857014]
[1738114754809,0.09484878,101650.0,101640.0,1.10937014]
[1738114755510,0.09484878,101650.0,101640.0,1.19241014]
[1738114756509,0.09484878,101650.0,101640.0,1.22291014]
[1738114756908,0.007,101650.0,101640.0,1.22291014]
[1738114757211,0.007,101650.0,101640.0,1.23222265]
[1738114759018,0.00014758,101660.0,101650.0,0.137803]
[1738114759215,0.00014758,101660.0,101650.0,0.59158007]
[1738114759409,0.00014758,101660.0,101650.0,0.68455714]
[1738114759604,0.20470373,101670.0,101660.0,0.137789]
[1738114759811,0.20470373,101670.0,101660.0,0.68686607]
[1738114760311,0.0958,101680.0,101670.0,0.137775]
[1738114760515,0.0958,101680.0,101670.0,0.68452914]
[1738114762716,0.0325,101680.0,101670.0,0.68452914]
[1738114762908,0.20480211,101690.0,101680.0,0.137762]
[1738114763108,0.20480211,101690.0,101680.0,0.59153907]
[1738114764014,0.20480211,101690.0,101680.0,0.59853907]
[1738114765116,0.08006281,101700.0,101690.0,0.137748]
[1738114765318,0.58848866,101710.0,101690.0,0.63905414]
[1738114765619,0.0945,101720.0,101710.0,0.137721]
[1738114765620,0.1507585,101720.0,101710.0,0.137721]
[1738114765812,0.1507585,101720.0,101710.0,0.59149807]
[1738114766321,0.0874585,101720.0,101710.0,0.59149807]
[1738114768017,0.0874585,101720.0,101710.0,0.60073236]
[1738114770421,0.137708,101720.0,101710.0,0.00923429]
[1738114770622,0.498508,101720.0,101700.0,0.59165665]
[1738114770818,0.0954,101710.0,101700.0,0.09312465]
[1738114771519,0.233121,101710.0,101700.0,0.00933401]
[1738114771724,0.137737,101700.0,101680.0,0.23221004]
[1738114771924,0.137737,101700.0,101690.0,0.09297707]
[1738114772110,0.137737,101700.0,101690.0,0.45377707]
[1738114773139,0.137737,101700.0,101690.0,0.3608]
[1738114773325,0.140737,101700.0,101690.0,0.3608]
[1738114774229,0.54775201,101710.0,101690.0,0.3608]
[1738114774523,0.137739,101700.0,101690.0,0.3608]
[1738114775320,0.137739,101700.0,101690.0,0.498548]
[1738114776029,0.140739,101700.0,101690.0,0.498548]
[1738114777130,0.140739,101700.0,101690.0,0.498425]
[1738114777427,0.140739,101700.0,101690.0,0.3608]
[1738114779122,0.23371607,101700.0,101690.0,0.3608]
[1738114779925,0.003,101700.0,101690.0,0.59152507]
[1738114782731,0.003,101700.0,101690.0,0.62162507]
[1738114782925,0.003,101700.0,101690.0,0.528648]
[1738114783127,0.45677707,101700.0,101680.0,0.32515442]
[1738114783636,0.59152507,101690.0,101680.0,0.42341649]
[1738114783833,0.59152507,101690.0,101680.0,0.41401042]
[1738114784927,0.59152507,101690.0,101680.0,0.41253545]
[1738114788534,0.65482507,101690.0,101680.0,0.00014758]
[1738114788930,0.65482507,101690.0,101680.0,0.13790958]
[1738114789835,0.29402507,101690.0,101680.0,0.13790958]
[1738114790540,0.65482507,101690.0,101680.0,0.13790958]
[1738114791330,0.65482507,101690.0,101680.0,0.00014758]
[1738114792734,0.561848,101690.0,101680.0,0.00014758]
[1738114792934,0.65482507,101690.0,101680.0,0.00014758]
[1738114795338,0.529648,101690.0,101680.0,0.13790958]
[1738114795842,0.3919,101690.0,101680.0,0.26358665]
[1738114796743,0.13788558,101700.0,101680.0,0.26358665]
[1738114796932,0.49868558,101700.0,101690.0,0.0325]
[1738114797842,0.13788558,101700.0,101690.0,0.0325]
[1738114798234,0.13788558,101700.0,101690.0,0.170248]
[1738114798645,0.13788558,101700.0,101690.0,0.200848]
[1738114799238,0.14088558,101700.0,101690.0,0.200848]
[1738114800246,0.50168558,101700.0,101690.0,0.200848]
[1738114800436,0.59466265,101700.0,101690.0,0.200848]
[1738114800637,0.59466265,101700.0,101690.0,0.0631]
[1738114802244,0.14088558,101700.0,101690.0,0.200848]
[1738114803238,0.14088558,101700.0,101690.0,0.21040458]
[1738114803440,0.00314758,101700.0,101690.0,0.30338165]
[1738114803645,0.00314758,101700.0,101690.0,0.66418165]
[1738114805342,0.00314758,101700.0,101690.0,0.57120458]
[1738114805843,0.00314758,101700.0,101690.0,0.66418165]
[1738114806246,0.00314758,101700.0,101690.0,0.74757138]
[1738114807746,0.00314758,101700.0,101690.0,0.84054845]
[1738114809356,0.00314758,101700.0,101690.0,0.74757138]
[1738114809954,0.00314758,101700.0,101690.0,0.84054845]
[1738114817158,0.00314758,101700.0,101690.0,1.07656952]
[1738114820256,0.00314758,101700.0,101690.0,0.90020272]
[1738114823257,0.3608,101720.0,101690.0,0.76245472]
[1738114823459,0.73946068,101730.0,101720.0,0.137708]
[1738114824274,0.24096368,101730.0,101720.0,0.137708]
[1738114824565,0.24096368,101730.0,101720.0,0.59148507]
[1738114824964,0.20886368,101730.0,101720.0,0.59148507]
[1738114825155,0.14606368,101730.0,101720.0,0.59148507]
[1738114825359,0.14606368,101730.0,101720.0,0.62278507]
[1738114826260,0.14606368,101730.0,101720.0,0.529808]
[1738114826570,0.14606368,101730.0,101720.0,0.62278507]
[1738114827062,0.26349386,101740.0,101720.0,0.62278507]
[1738114827267,0.26349386,101740.0,101720.0,0.48507707]
[1738114827573,0.26349386,101740.0,101730.0,0.137694]
[1738114829965,0.21040725,101740.0,101730.0,0.137694]
[1738114830563,0.11743018,101740.0,101730.0,0.137694]
[1738114830768,0.11743018,101740.0,101730.0,0.143694]
[1738114832576,0.11743018,101740.0,101730.0,0.15563692]
[1738114832771,0.25511118,101740.0,101730.0,0.15563692]
[1738114833867,0.137681,101740.0,101730.0,0.15563692]
[1738114836876,1.79234393,101750.0,101730.0,0.15563692]
[1738114837072,1.69936686,101750.0,101730.0,0.24861399]
[1738114837272,1.69936686,101750.0,101730.0,0.15563692]